bitfinex/quotes_SOLUSD_20250831
["timestamp","ask_amount","ask_price","bid_price","bid_amount"]
[1756622321171,1e-08,204.05,204.04,47.90342947]
[1756622321354,1e-08,204.05,204.04,51.00934577]
[1756622322680,1e-08,204.05,204.04,51.68934577]
[1756622326779,1e-08,204.05,204.04,53.65335477]
[1756622329072,1e-08,204.05,204.04,53.64975121]
[1756622332679,0.06,204.07,204.05,13.59559401]
[1756622332680,1e-08,204.07,204.05,13.59559401]
[1756622332872,1e-08,204.07,204.06,85.68033642]
[1756622333080,1e-08,204.07,204.06,86.36033642]
[1756622333562,1e-08,204.07,204.06,88.32405642]
[1756622334665,1e-08,204.07,204.06,93.22457587]
[1756622335864,1e-08,204.07,204.06,92.54457587]
[1756622336595,1e-08,204.07,204.06,93.22457587]
[1756622338681,1e-08,204.1,204.07,13.59559401]
[1756622338987,1e-08,204.1,204.09,3.90242967]
[1756622339165,1e-08,204.1,204.09,7.00474241]
[1756622339366,1e-08,204.11,204.1,13.59559401]
[1756622339567,1e-08,204.11,204.1,60.34033642]
[1756622339767,1e-08,204.11,204.1,60.37274615]
[1756622339967,1e-08,204.12,204.1,60.37274615]
[1756622340192,1e-08,204.12,204.11,21.31274615]
[1756622340489,0.69,204.18,204.11,21.31274615]
[1756622340490,0.69,204.18,204.14,3.90242967]
[1756622340666,4.59242967,204.17,204.16,4.89811912]
[1756622341896,0.69,204.17,204.16,4.89811912]
[1756622343487,4.59242967,204.17,204.15,43.95830184]
[1756622343689,0.69,204.16,204.15,43.95830184]
[1756622344573,3.90242967,204.18,204.15,43.95830184]
[1756622344806,0.69,204.17,204.15,43.95830184]
[1756622345484,4.59242967,204.16,204.13,4.89883897]
[1756622345798,3.90242967,204.14,204.13,4.89883897]
[1756622345985,4.59242967,204.14,204.13,8.03703748]
[1756622346484,4.59242967,204.14,204.13,47.07703748]
[1756622347400,4.59242967,204.14,204.13,39.04]
[1756622347895,0.69,204.14,204.13,39.04]
[1756622348100,4.59242967,204.14,204.13,43.93883897]
[1756622350795,4.59242967,204.14,204.1,4.89955903]
[1756622351099,3.90242967,204.12,204.11,39.04]
[1756622351296,4.59242967,204.12,204.11,39.04]
[1756622352000,4.59242967,204.12,204.11,43.93931899]
[1756622352176,3.90242967,204.13,204.11,43.93931899]
[1756622352375,3.90242967,204.15,204.11,44.65931899]
[1756622352599,4.1560964,204.17,204.12,0.72]
[1756622352802,3.90242967,204.15,204.13,39.76]
[1756622353293,3.90242967,204.15,204.14,39.04]
[1756622353979,3.96242967,204.17,204.15,4.89835904]
[1756622354185,3.96242967,204.17,204.16,39.04]
[1756622356005,4.65242967,204.17,204.16,39.04]
[1756622356689,3.96242967,204.17,204.16,39.04]
[1756622358402,3.96242967,204.17,204.16,43.93811912]
[1756622359304,3.96242967,204.17,204.16,43.91811912]
[1756622359713,0.06,204.17,204.16,43.91811912]
[1756622359909,3.96242967,204.17,204.16,43.91811912]
[1756622362597,3.96242967,204.17,204.15,4.89835904]
[1756622362800,0.06,204.17,204.16,39.02]
[1756622364014,3.96242967,204.17,204.16,39.74]
[1756622364898,3.96242967,204.17,204.16,44.63811912]
[1756622365483,0.06,204.17,204.16,44.63811912]
[1756622368009,0.06,204.17,204.16,5.61811912]
[1756622368199,0.06,204.17,204.16,44.61811912]
[1756622370113,0.06,204.17,204.16,5.61811912]
[1756622370306,0.06,204.17,204.16,44.61811912]
[1756622370507,0.06,204.17,204.16,5.61811912]
[1756622370722,0.06,204.17,204.16,44.61811912]
[1756622371016,0.06,204.17,204.16,5.61811912]
[1756622371218,3.96242967,204.17,204.16,69.89811912]
[1756622371419,4.65242967,204.17,204.16,39.0]
[1756622372616,3.96242967,204.17,204.16,39.7]
[1756622373519,3.96242967,204.17,204.16,44.59811912]
[1756622375304,3.96242967,204.17,204.16,43.89811912]
[1756622375506,3.96242967,204.17,204.16,44.59811912]
[1756622376317,3.96242967,204.17,204.16,43.89811912]
[1756622376518,0.06,204.17,204.16,43.89811912]
[1756622377219,0.06,204.17,204.16,44.59811912]
[1756622378120,0.06,204.17,204.16,5.59811912]
[1756622378422,0.06,204.17,204.16,44.57811912]
[1756622378595,0.06,204.17,204.16,47.8160597]
[1756622381818,0.06,204.17,204.16,44.57811912]
[1756622381998,0.06,204.17,204.16,47.81681278]
[1756622388428,0.06,204.17,204.16,8.13681278]
[1756622388627,0.06,204.17,204.16,47.09681278]
[1756622388937,3.96242967,204.17,204.16,8.13681278]
[1756622389103,3.96242967,204.17,204.16,47.09681278]
[1756622389728,3.96242967,204.17,204.16,8.13681278]
[1756622390034,4.67242967,204.17,204.16,8.13681278]
[1756622390336,4.67242967,204.17,204.16,47.09681278]
[1756622392730,4.67242967,204.17,204.16,47.11991805]
[1756622393540,4.67242967,204.17,204.16,47.12024027]
[1756622396138,3.96242967,204.17,204.16,47.12024027]
[1756622396335,3.96242967,204.17,204.16,47.12207302]
[1756622397137,3.96242967,204.17,204.16,8.16207302]
[1756622397351,2.55196868,204.17,204.16,47.10207302]
[1756622400449,3.26196868,204.17,204.16,42.1839539]
[1756622401451,4.6646456,204.17,204.16,42.1839539]
[1756622402352,4.6646456,204.17,204.16,38.92]
[1756622402550,4.6646456,204.17,204.16,42.12335928]
[1756622404231,4.6646456,204.17,204.16,3.20335928]
[1756622404432,4.6646456,204.17,204.16,42.12335928]
[1756622404754,3.9546456,204.17,204.16,47.0214784]
[1756622404937,3.9546456,204.17,204.16,47.6914784]
[1756622405125,0.06,204.17,204.16,47.0214784]
[1756622405332,8.0647408,204.17,204.16,47.0214784]
[1756622407252,8.0647408,204.17,204.16,47.6914784]
[1756622408556,4.1700952,204.17,204.16,47.6914784]
[1756622408758,8.0647408,204.17,204.16,47.6914784]
[1756622411363,4.1700952,204.17,204.16,47.6914784]
[1756622411549,4.1700952,204.17,204.16,51.586124]
[1756622411550,1e-08,204.17,204.16,51.586124]
[1756622411857,4.1700952,204.2,204.16,63.8314218]
[1756622412035,4.1700952,204.2,204.17,3.87335928]
[1756622412236,0.06,204.2,204.18,42.77335928]
[1756622412557,0.06,204.2,204.19,3.87335928]
[1756622412959,7.6247408,204.22,204.19,3.87335928]
[1756622413161,4.1100952,204.22,204.2,39.57]
[1756622413363,8.0047408,204.22,204.21,3.43668323]
[1756622413677,8.0047408,204.22,204.21,8.33360306]
[1756622414263,4.1100952,204.25,204.21,21.24590265]
[1756622414437,0.2,204.26,204.21,21.24590265]
[1756622414438,0.2,204.26,204.22,43.00668323]
[1756622414638,4.0946456,204.26,204.23,3.43668323]
[1756622414946,0.2,204.26,204.24,43.00668323]
[1756622415138,0.2,204.26,204.25,3.43668323]
[1756622415338,0.2,204.26,204.25,42.33668323]
[1756622416065,0.2,204.26,204.25,47.23264406]
[1756622416354,4.0946456,204.26,204.25,47.23264406]
[1756622416745,4.0946456,204.26,204.25,47.02281718]
[1756622417261,0.89,204.26,204.25,42.10685635]
[1756622417449,4.7846456,204.26,204.25,42.10685635]
[1756622418763,4.7846456,204.26,204.25,3.22685635]
[1756622418953,4.7846456,204.26,204.25,38.88]
[1756622419356,4.7846456,204.26,204.24,4.89618888]
[1756622419546,0.2,204.26,204.25,38.88]
[1756622419946,0.2,204.26,204.25,42.10350622]
[1756622420266,0.2,204.26,204.25,42.14085457]
[1756622420848,4.0946456,204.26,204.25,42.14085457]
[1756622421145,4.0946456,204.26,204.25,47.0368154]
[1756622422571,4.0946456,204.26,204.25,43.77596083]
[1756622422865,0.2,204.26,204.25,44.44596083]
[1756622423854,4.0946456,204.26,204.25,43.77596083]
[1756622425760,4.0946456,204.26,204.25,4.89596083]
[1756622425958,4.0946456,204.26,204.25,43.75596083]
[1756622426171,0.2,204.26,204.25,43.75596083]
[1756622426380,0.2,204.26,204.25,44.42596083]
[1756622429078,0.2,204.26,204.25,5.56596083]
[1756622429272,0.2,204.26,204.25,44.40596083]
[1756622429664,0.2,204.26,204.25,5.56596083]
[1756622429871,0.2,204.26,204.25,44.40596083]
[1756622434689,4.0946456,204.26,204.25,44.40596083]
[1756622435277,0.2,204.26,204.25,44.40596083]
[1756622437784,0.2,204.26,204.25,46.89543628]
[1756622437986,0.06,204.29,204.25,62.38736824]
[1756622438196,0.06,204.29,204.26,6.42150533]
[1756622438374,0.06,204.29,204.27,44.56126948]
[1756622438559,0.06,204.29,204.27,41.98947545]
[1756622438760,0.06,204.29,204.28,3.169476]
[1756622438962,0.06,204.29,204.28,8.06471782]
[1756622439163,0.06,204.29,204.28,5.57524182]
[1756622439360,0.06,204.29,204.28,46.88471682]
[1756622440593,0.72,204.29,204.28,7.38471682]
[1756622440793,3.20947545,204.29,204.22,12.95142222]
[1756622440965,0.66,204.28,204.23,46.96761085]
[1756622441159,0.66,204.27,204.23,4.89644028]
[1756622441386,0.66,204.26,204.24,38.82]
[1756622441594,0.66,204.25,204.24,38.82]
[1756622441975,0.66,204.25,204.22,0.03]
[1756622442166,3.89126159,204.23,204.22,0.03]
[1756622442401,3.89126159,204.23,204.22,38.85]
[1756622442683,4.55126159,204.23,204.22,38.85]
[1756622445986,4.55126159,204.23,204.22,0.03]
[1756622446167,3.89126159,204.23,204.22,38.83]
[1756622446369,0.66,204.24,204.22,38.83]
[1756622446591,3.89126159,204.23,204.22,38.83]
[1756622446769,4.55126159,204.23,204.22,38.83]
[1756622447277,3.89126159,204.23,204.22,38.83]
[1756622447478,3.89126159,204.23,204.22,43.72668005]
[1756622448493,12.897022,204.27,204.22,4.92668005]
[1756622448696,3.89126159,204.23,204.22,5.60668005]
[1756622448866,3.89126159,204.23,204.22,44.40668005]
[1756622451177,3.89126159,204.23,204.22,38.83]
[1756622451488,4.55126159,204.23,204.22,0.03]
[1756622451693,4.55126159,204.23,204.22,38.83]
[1756622452598,0.66,204.23,204.22,38.83]
[1756622452780,4.55126159,204.23,204.22,38.83]
[1756622453787,3.89126159,204.23,204.22,38.83]
[1756622454876,0.66,204.25,204.22,38.83]
[1756622455197,3.89126159,204.23,204.22,43.72665912]
[1756622455691,3.89126159,204.23,204.22,38.83]
[1756622455891,4.55126159,204.23,204.22,38.83]
[1756622456403,4.7700952,204.25,204.22,38.83]
[1756622456599,3.89126159,204.23,204.22,38.83]
[1756622457496,3.89126159,204.23,204.22,44.40662249]
[1756622459299,3.89126159,204.23,204.22,43.72662249]
[1756622460094,3.89126159,204.23,204.22,44.40662249]
[1756622462896,0.06,204.26,204.22,44.40662249]
[1756622463097,3.89126159,204.23,204.22,43.72662249]
[1756622463688,3.89126159,204.23,204.22,43.70662249]
[1756622463883,3.89126159,204.23,204.22,4.92662249]
[1756622464090,3.89126159,204.23,204.22,0.03]
[1756622464300,0.71,204.23,204.22,0.03]
[1756622464498,4.60126159,204.23,204.22,38.81]
[1756622466194,3.89126159,204.23,204.22,38.81]
[1756622471083,4.60126159,204.23,204.22,0.03]
[1756622471297,4.60126159,204.23,204.22,38.79]
[1756622473293,3.89126159,204.23,204.22,38.79]
[1756622474090,13.6673712,204.26,204.22,38.79]
[1756622474298,3.89126159,204.23,204.22,38.79]
[1756622474812,3.89126159,204.23,204.22,0.03]
[1756622475000,3.89126159,204.23,204.22,38.79]
[1756622479933,3.89126159,204.23,204.22,0.03]
[1756622480118,3.89126159,204.23,204.22,38.79]
[1756622482120,3.89126159,204.23,204.22,39.45]
[1756622482628,3.89126159,204.23,204.22,38.77]
[1756622482801,3.89126159,204.23,204.22,0.03]
[1756622483007,4.60126159,204.23,204.22,0.03]
[1756622483436,8.71135679,204.23,204.22,0.03]
[1756622484508,8.00135679,204.23,204.22,0.03]
[1756622485336,3.89126159,204.23,204.22,0.03]
[1756622485735,4.60126159,204.23,204.22,0.03]
[1756622491331,3.20138303,204.23,204.22,0.03]
[1756622492847,2.49138303,204.23,204.22,0.03]
[1756622496636,8.08782331,204.23,204.22,0.03]
[1756622498136,22.81211131,204.23,204.22,0.03]
[1756622499921,20.32072828,204.23,204.22,0.03]
[1756622500125,8.08782331,204.23,204.22,0.03]
[1756622500326,10.05106231,204.23,204.22,0.03]
[1756622504848,15.52772916,204.23,204.22,0.03]
[1756622506343,29.12332317,204.23,204.22,0.03]
[1756622506538,13.03634613,204.23,204.22,0.03]
[1756622506746,15.52772916,204.23,204.22,0.03]
[1756622507119,14.82772916,204.23,204.22,0.03]
[1756622508850,15.52772916,204.23,204.22,0.03]
[1756622521953,29.12332317,204.23,204.22,0.03]
[1756622522143,28.49138303,204.2,204.19,0.03]
[1756622522539,29.15138303,204.2,204.17,0.03]
[1756622522747,2.49138303,204.18,204.17,0.03]
[1756622523332,9.35254936,204.18,204.17,0.03]
[1756622523643,9.35254936,204.18,204.17,0.71]
[1756622523952,9.35254936,204.18,204.17,0.03]
[1756622524154,10.01254936,204.18,204.17,0.03]
[1756622524458,9.35254936,204.18,204.17,0.03]
[1756622525046,13.32082914,204.18,204.17,0.03]
[1756622526054,9.35254936,204.18,204.17,0.03]
[1756622526364,10.01254936,204.18,204.17,0.03]
[1756622527164,19.97808148,204.18,204.17,0.03]
[1756622527663,10.01254936,204.18,204.17,0.03]
[1756622529956,37.45931495,204.18,204.17,0.03]
[1756622530134,26.0,204.15,204.13,0.03]
[1756622530335,2.49138303,204.14,204.13,0.03]
[1756622530863,4.45539303,204.14,204.13,0.03]
[1756622531055,4.45539303,204.14,204.13,0.71]
[1756622531564,9.35399203,204.14,204.13,0.71]
[1756622531771,9.35399203,204.14,204.13,0.03]
[1756622532064,23.60958604,204.14,204.13,0.03]
[1756622533946,62.22958604,204.14,204.13,0.03]
[1756622535848,26.0,204.11,204.1,0.03]
[1756622536060,28.49138303,204.11,204.1,0.03]
[1756622536455,30.45568103,204.11,204.1,0.03]
[1756622537048,30.45568103,204.11,204.1,0.71]
[1756622537670,35.35500002,204.11,204.1,0.71]
[1756622539863,35.35500002,204.11,204.1,0.03]
[1756622558887,73.91500002,204.11,204.1,0.03]
[1756622559771,30.45568103,204.11,204.1,0.74]
[1756622565990,35.35500002,204.11,204.1,0.74]
[1756622566579,39.44098967,204.11,204.1,0.74]
[1756622566883,36.02500002,204.11,204.1,0.03]
[1756622568077,35.35500002,204.11,204.1,0.03]
[1756622568784,73.89500002,204.11,204.1,0.03]
[1756622569693,74.56500002,204.11,204.1,0.03]
[1756622570001,73.89500002,204.11,204.1,0.03]
[1756622574292,80.04192857,204.11,204.1,0.03]
[1756622574881,79.37192857,204.11,204.1,0.03]
[1756622578011,76.88054554,204.11,204.1,0.03]
[1756622578301,79.37192857,204.11,204.1,0.03]
[1756622581984,40.83192857,204.11,204.1,0.03]
[1756622582188,79.33192857,204.11,204.1,0.03]
[1756622582784,53.33192857,204.11,204.1,0.03]
[1756622582991,1.964298,204.11,204.1,0.7]
[1756622583383,4.1109511,204.11,204.1,3.19138303]
[1756622584504,4.1109511,204.12,204.1,8.09094206]
[1756622584693,4.1109511,204.12,204.11,0.67]
[1756622585302,4.1109511,204.12,204.11,5.56931899]
[1756622585996,0.06,204.13,204.11,5.56931899]
[1756622586182,0.06,204.13,204.12,0.67]
[1756622587294,4.1709511,204.13,204.12,0.67]
[1756622588406,6.66233413,204.13,204.12,0.67]
[1756622588604,11.62232613,204.13,204.12,0.67]
[1756622591290,7.51137503,204.13,204.12,0.67]
[1756622598803,7.51137503,204.13,204.1,0.7]
[1756622598998,2.49138303,204.12,204.11,0.67]
[1756622599202,2.49138303,204.12,204.1,0.03]
[1756622599612,7.39115703,204.12,204.1,0.03]
[1756622599813,7.39115703,204.12,204.11,0.67]
[1756622601115,12.16210813,204.12,204.1,0.03]
[1756622601316,2.49138303,204.11,204.1,0.03]
[1756622601816,5.11568203,204.11,204.1,0.03]
[1756622606419,14.12595212,204.11,204.1,0.03]
[1756622606621,10.01500102,204.11,204.1,0.03]
[1756622611426,48.43500102,204.11,204.1,0.03]
[1756622613429,26.0,204.09,204.08,0.03]
[1756622613629,47.56830721,204.09,204.08,0.03]
[1756622613815,48.28830721,204.09,204.08,0.03]
[1756622614018,50.25308921,204.09,204.08,0.03]
[1756622614734,93.57288831,204.09,204.08,0.03]
[1756622614935,13.59559401,204.08,204.07,0.03]
[1756622615112,21.54438523,204.08,204.07,0.03]
[1756622615314,22.26438523,204.08,204.07,0.03]
[1756622616008,24.22935923,204.08,204.07,0.03]
[1756622616535,29.12939843,204.08,204.07,0.03]
[1756622617410,23.67199024,204.08,204.07,0.03]
[1756622618516,29.12939843,204.08,204.07,0.03]
[1756622620241,23.67199024,204.08,204.07,0.03]
[1756622620444,29.12939843,204.08,204.07,0.03]
[1756622623428,62.07199024,204.08,204.07,0.03]
[1756622625718,72.03752236,204.08,204.07,0.03]
[1756622626138,67.51074945,204.08,204.07,0.03]
[1756622626320,67.51074945,204.08,204.07,1e-08]
[1756622626523,26.0,204.06,204.05,0.03]
[1756622626738,90.43250916,204.06,204.05,0.03]
[1756622626955,91.15250916,204.06,204.05,0.03]
[1756622627130,93.11786916,204.06,204.04,0.03]
[1756622627334,12.45691515,204.05,204.04,0.03]
[1756622627532,39.59559401,204.03,204.02,0.03]
[1756622627856,89.44473461,204.03,204.02,0.03]
[1756622628229,90.16473461,204.03,204.02,0.03]
[1756622628558,92.13019161,204.03,204.02,0.03]
[1756622629355,88.05367405,204.03,204.02,0.03]
[1756622630071,62.05367405,204.03,204.02,0.03]
[1756622630257,61.33367405,204.03,204.02,0.03]
[1756622632235,45.24669701,204.03,204.02,0.72]
[1756622632464,47.73808004,204.03,204.02,0.72]
[1756622632755,4.45684003,204.03,204.02,0.72]
[1756622633256,30.45684003,204.03,204.02,0.72]
[1756622633457,4.45684003,204.03,204.02,0.72]
[1756622641364,9.35808004,204.03,204.02,0.72]
[1756622649063,23.65367405,204.03,204.02,0.03]
[1756622649457,13.59559401,204.02,204.01,0.03]
[1756622649660,58.50658366,204.02,204.01,0.03]
[1756622649868,59.20658366,204.02,204.01,0.03]
[1756622650175,61.17204066,204.02,204.01,0.03]
[1756622651267,66.0735209,204.02,204.01,0.03]
[1756622652359,61.99391428,204.02,204.01,0.03]
[1756622658361,67.43106471,204.02,204.01,0.03]
[1756622659984,61.99391428,204.02,204.01,0.03]
[1756622663165,61.29391428,204.02,204.01,0.03]
[1756622664584,66.75234012,204.02,204.01,0.03]
[1756622666092,61.29391428,204.02,204.01,0.03]
[1756622668395,61.99391428,204.02,204.01,0.03]
[1756622670195,26.0,204.0,203.99,0.03]
[1756622670376,72.23485085,204.0,203.99,0.03]
[1756622670576,72.93485085,204.0,203.99,0.03]
[1756622670770,88.49599786,204.0,203.99,0.03]
[1756622670974,88.49599786,204.0,203.96,0.75]
[1756622670975,26.0,203.97,203.96,0.75]
[1756622671283,72.23127138,203.97,203.96,0.75]
[1756622671685,74.19711438,203.97,203.96,0.75]
[1756622672200,79.09979614,203.97,203.96,0.75]
[1756622675303,73.63990779,203.97,203.96,0.75]
[1756622676007,79.09979614,203.97,203.96,0.75]
[1756622676885,40.81979614,203.97,203.96,0.75]
[1756622677078,79.09979614,203.97,203.96,0.75]
[1756622678288,73.63990779,203.97,203.96,0.75]
[1756622679885,35.35990779,203.97,203.96,0.75]
[1756622680087,73.61990779,203.97,203.96,0.75]
[1756622682699,73.61990779,203.97,203.96,0.03]
[1756622682910,35.35990779,203.97,203.96,0.03]
[1756622683206,73.61990779,203.97,203.96,0.03]
[1756622683905,73.61990779,203.97,203.96,0.69]
[1756622686200,35.35990779,203.97,203.96,0.69]
[1756622686504,8.54325595,203.97,203.96,0.69]
[1756622686702,30.45722603,203.97,203.96,0.69]
[1756622687209,6.57741295,203.97,203.96,0.69]
[1756622687505,32.57741295,203.97,203.96,0.69]
[1756622688400,6.05168092,203.98,203.96,0.69]
[1756622688702,4.08602992,203.98,203.96,0.69]
[1756622689202,6.57741295,203.98,203.96,0.69]
[1756622694714,2.49138303,203.97,203.96,0.03]
[1756622694921,2.49138303,203.97,203.96,0.69]
[1756622695284,2.49138303,203.97,203.96,0.03]
[1756622695810,3.21138303,203.97,203.96,0.03]
[1756622695988,2.49138303,203.97,203.96,0.03]
[1756622697197,7.39406479,203.97,203.96,0.03]
[1756622697509,2.49138303,203.97,203.96,0.03]
[1756622700122,2.49138303,203.97,203.96,0.69]
[1756622701117,2.49138303,203.97,203.96,0.03]
[1756622701914,8.11406479,203.97,203.96,0.03]
[1756622702703,48.29981179,203.97,203.96,0.03]
[1756622703110,52.24619151,203.97,203.96,0.03]
[1756622704808,48.29981179,203.97,203.96,0.03]
[1756622706122,48.29981179,203.97,203.96,0.72]
[1756622706123,4.45713003,203.97,203.96,0.72]
[1756622706424,9.35981179,203.97,203.96,0.03]
[1756622708022,10.07981179,203.97,203.96,0.03]
[1756622711308,15.53970014,203.97,203.96,0.03]
[1756622712343,4.45713003,203.97,203.96,0.72]
[1756622714936,1.965747,203.97,203.96,0.72]
[1756622715110,4.45713003,203.97,203.96,0.72]
[1756622716030,4.51713003,203.97,203.96,0.72]
[1756622716817,4.51713003,203.97,203.96,0.03]
[1756622717018,9.41981179,203.97,203.96,0.03]
[1756622717525,10.13981179,203.97,203.96,0.03]
[1756622717724,48.31981179,203.97,203.96,0.03]
[1756622719720,47.59981179,203.97,203.96,0.03]
[1756622726243,48.31981179,203.97,203.96,0.03]
[1756622727642,47.59981179,203.97,203.96,0.03]
[1756622730941,9.41981179,203.97,203.96,0.03]
[1756622731149,47.55981179,203.97,203.96,0.03]
[1756622732842,61.8454058,203.97,203.96,0.03]
[1756622733045,39.59559401,203.95,203.94,0.03]
[1756622733225,90.19250916,203.95,203.94,0.03]
[1756622733535,90.88250916,203.95,203.94,0.03]
[1756622733848,92.84873916,203.95,203.94,0.03]
[1756622735162,97.75190169,203.95,203.94,0.03]
[1756622738335,103.20202907,203.95,203.94,0.03]
[1756622740545,102.51202907,203.95,203.94,0.03]
[1756622741230,103.20202907,203.95,203.94,0.03]
[1756622745158,103.18202907,203.95,203.94,0.03]
[1756622746231,102.49202907,203.95,203.94,0.03]
[1756622747732,33.41635738,203.95,203.94,0.69]
[1756622747934,34.5450157,203.95,203.94,0.69]
[1756622751835,30.45761303,203.95,203.94,0.69]
[1756622755555,30.45761303,203.95,203.94,0.03]
[1756622756162,30.45761303,203.95,203.94,0.69]
[1756622756551,30.45761303,203.95,203.94,0.03]
[1756622756932,30.45761303,203.95,203.94,0.69]
[1756622759163,35.36077556,203.95,203.94,0.03]
[1756622759459,103.14202907,203.95,203.94,0.03]
[1756622760957,13.59559401,203.94,203.93,0.03]
[1756622761150,36.40400789,203.94,203.93,0.03]
[1756622761351,37.09400789,203.94,203.93,0.03]
[1756622761576,39.06033489,203.94,203.93,0.03]
[1756622766548,38.37033489,203.94,203.93,0.03]
[1756622766753,39.09033489,203.94,203.93,0.03]
[1756622768268,38.37033489,203.94,203.93,0.03]
[1756622768460,38.37033489,203.94,203.93,0.7]
[1756622768461,34.54322985,203.94,203.93,0.7]
[1756622769273,30.45771003,203.94,203.93,0.7]
[1756622769476,4.45771003,203.94,203.93,0.7]
[1756622771174,1.966327,203.94,203.93,0.7]
[1756622771568,2.49138303,203.94,203.93,0.7]
[1756622771769,4.45713003,203.94,203.93,0.7]
[1756622771985,2.49138303,203.94,203.93,0.7]
[1756622772586,6.05126582,203.95,203.93,0.7]
[1756622772892,2.49138303,203.94,203.93,0.7]
[1756622773296,7.42525803,203.94,203.93,0.7]
[1756622774888,4.933875,203.94,203.93,0.7]
[1756622775080,7.42525803,203.94,203.93,0.7]
[1756622775586,7.42525803,203.94,203.93,0.03]
[1756622775895,8.14525803,203.94,203.93,0.03]
[1756622776405,11.51077785,203.94,203.93,0.03]
[1756622776575,66.69530694,203.94,203.93,0.03]
[1756622776778,42.05788289,203.94,203.93,0.03]
[1756622781598,29.60096774,203.94,203.93,0.03]
[1756622781784,17.77675676,203.94,203.93,0.03]
[1756622782271,28.46228888,203.94,203.93,0.03]
[1756622783397,42.05788289,203.94,203.93,0.03]
[1756622787180,41.39788289,203.94,203.93,0.03]
[1756622787405,42.11788289,203.94,203.93,0.03]
[1756622788204,41.39788289,203.94,203.93,0.03]
[1756622789201,79.43788289,203.94,203.93,0.03]
[1756622789704,80.15788289,203.94,203.93,0.03]
[1756622789890,42.11788289,203.94,203.93,0.03]
[1756622790197,80.15788289,203.94,203.93,0.03]
[1756622791709,67.70096774,203.94,203.93,0.03]
[1756622791912,79.43788289,203.94,203.93,0.03]
[1756622798487,80.12788289,203.94,203.93,0.03]
[1756622798686,79.43788289,203.94,203.93,0.03]
[1756622798883,79.43788289,203.94,203.89,0.03]
[1756622798884,20.0,203.89,203.82,0.71]
[1756622799084,33.59559401,203.88,203.82,0.71]
[1756622799312,26.0,203.85,203.82,0.71]
[1756622799618,6.5698742,203.83,203.82,0.71]
[1756622799801,12.45691515,203.83,203.82,0.71]
[1756622800002,14.94829815,203.83,203.82,0.71]
[1756622800402,14.94829815,203.83,203.77,0.71]
[1756622800403,26.0,203.79,203.77,0.71]
[1756622800584,68.09600958,203.79,203.78,0.71]
[1756622801111,73.83607312,203.79,203.78,0.71]
[1756622801308,35.81607312,203.79,203.78,0.71]
[1756622801714,39.72585674,203.79,203.78,0.71]
[1756622804101,39.72585674,203.79,203.78,0.03]
[1756622806599,39.72585674,203.79,203.78,0.74]
[1756622808500,77.76585674,203.79,203.78,0.74]
[1756622810704,34.81884462,203.79,203.78,0.74]
[1756622814130,30.909061,203.79,203.78,0.74]
[1756622814431,34.81884462,203.79,203.78,0.74]
[1756622816643,39.72585674,203.79,203.78,0.03]
[1756622816932,77.76585674,203.79,203.78,0.03]
[1756622818615,34.81884462,203.79,203.78,0.74]
[1756622819426,40.41585674,203.79,203.78,0.03]
[1756622820628,39.72585674,203.79,203.78,0.03]
[1756622823634,34.81679574,203.79,203.78,0.03]
[1756622832431,35.53679574,203.79,203.78,0.03]
[1756622832816,34.81679574,203.79,203.78,0.03]
[1756622834829,35.53679574,203.79,203.78,0.03]
[1756622835139,34.81679574,203.79,203.78,0.03]
[1756622835339,7.41004806,203.79,203.78,0.03]
[1756622836824,8.13004806,203.79,203.78,0.03]
[1756622837339,7.41004806,203.79,203.78,0.03]
[1756622838327,13.45354464,203.79,203.78,0.03]
[1756622839131,11.48605764,203.79,203.78,0.03]